{"text_format":"1","workbook":"xlsx","n_sheets":5,"sheets":["Navne","Niveau-skema","Ugeskema uge X","Ikoner","Samarbejdsskema"],"not_rendered":{"charts":0,"images":44,"macros":1,"external_links":0,"defined_names":2,"comments":0,"pivot_tables":0},"unopened":[],"bounds":{"document_bytes":16777216,"sheet_cells":100000,"rows_first":2000,"rows_last":500,"rows_between":2000,"halvings":0,"cell_chars":16384,"cell_head_chars":4096},"cells_cut":0,"cells_raw":0,"read":"whole","date_system":"1900"}

{"sheet":"Navne","index":0,"n_rows":29,"n_cols":4,"rows_kept":29,"cut":false,"hidden":false,"merged":[]}
["Indtast elevernes navne",null,null,"Indtast klasse:"]
["Navn 1",null,null,"1. A"]
["Navn 2"]
["Navn 3",null,null,"1. Skriv klassens navn "]
["Navn 4"]
["Navn 5"]
["Navn 6",null,null,"2. Skriv elevernes navne "]
["Navn 7"]
["Navn 8",null,null,"3. Slet indholdet i de overskydende navnefelter"]
["Navn 9"]
["Navn10",null,null,"4. Tryk på knappen: Sorter navne alfabetisk"]
["Navn11"]
["Navn12"]
["Navn13"]
["Navn14"]
["Navn15"]
["Navn16",null,null,"Få hele forklaringen i bogen \"Få ro, trivsel og overskud i lyset af folkeskolereformen\"."]
["Navn17",null,null,"Se mere om bogen"]
["Navn18"]
["Navn19",null,null,"Eller kom på kursus, rundt i landet"]
["Navn20",null,null,"Læs mere"]
["Navn21"]
["Navn22",null,null,"Få et kursus eller kursusforløb på skolen"]
["Navn23",null,null,"Efteruddannelse af lærere og pædagoger"]
["Navn24"]
["Navn25"]
["Navn26"]
["Navn27"]
["Navn28"]

{"sheet":"Niveau-skema","index":1,"n_rows":33,"n_cols":10,"rows_kept":33,"cut":false,"hidden":false,"merged":[[3,9,3,11],[2,9,2,14]]}
[]
[]
[{"$f":"\"Klasse\"\n&\"    \"\n&\"    \"\n&Navne!D2","v":"Klasse        1. A"},null,null,null,null,null,null,null,null,"1. Indsæt de nedslagspunkter, du har brug for til at fastholde\n     overblikket og sikre progressionen.\n     Få hele forklaringen på side 157 i bogen \n     \"Få ro, trivsel & overskud i lyset af folkeskolereformen\"."]
[null,null,null,null,null,null,null,null,null,"      Se mere om bogen"]
["Navn:"]
[{"$f":"Navne!A2","v":"Navn 1"},null,null,null,null,null,null,null,null,"2. Udvælg med musen det område, du har udfyldt"]
[{"$f":"Navne!A3","v":"Navn 2"}]
[{"$f":"Navne!A4","v":"Navn 3"},null,null,null,null,null,null,null,null,"3. Vælg udskriv eller tryk Ctrl P"]
[{"$f":"Navne!A5","v":"Navn 4"}]
[{"$f":"Navne!A6","v":"Navn 5"},null,null,null,null,null,null,null,null,"4. Vælg printer"]
[{"$f":"Navne!A7","v":"Navn 6"}]
[{"$f":"Navne!A8","v":"Navn 7"},null,null,null,null,null,null,null,null,"5. Vælg \"Udskriv markering\" "]
[{"$f":"Navne!A9","v":"Navn 8"}]
[{"$f":"Navne!A10","v":"Navn 9"}]
[{"$f":"Navne!A11","v":"Navn10"}]
[{"$f":"Navne!A12","v":"Navn11"}]
[{"$f":"Navne!A13","v":"Navn12"}]
[{"$f":"Navne!A14","v":"Navn13"}]
[{"$f":"Navne!A15","v":"Navn14"}]
[{"$f":"Navne!A16","v":"Navn15"}]
[{"$f":"Navne!A17","v":"Navn16"}]
[{"$f":"Navne!A18","v":"Navn17"}]
[{"$f":"Navne!A19","v":"Navn18"}]
[{"$f":"Navne!A20","v":"Navn19"}]
[{"$f":"Navne!A21","v":"Navn20"},null,null,null,null,null,null,null,null,"6. Vælg  \"Udskriv\""]
[{"$f":"Navne!A22","v":"Navn21"}]
[{"$f":"Navne!A23","v":"Navn22"}]
[{"$f":"Navne!A24","v":"Navn23"}]
[{"$f":"Navne!A25","v":"Navn24"}]
[{"$f":"Navne!A26","v":"Navn25"}]
[{"$f":"Navne!A27","v":"Navn26"}]
[{"$f":"Navne!A28","v":"Navn27"}]
[{"$f":"Navne!A29","v":"Navn28"}]

{"sheet":"Ugeskema uge X","index":2,"n_rows":35,"n_cols":23,"rows_kept":35,"cut":false,"hidden":false,"merged":[[30,17,30,21],[31,17,31,21],[22,17,22,21],[23,17,23,21],[24,17,24,21],[20,17,20,21],[10,17,10,21],[27,17,27,21],[28,17,28,21],[29,17,29,21],[3,17,3,21],[2,17,2,21],[1,17,1,21],[0,17,0,21],[19,17,19,21],[0,4,0,5],[12,17,12,21],[13,17,13,21],[7,17,7,21],[14,17,14,21],[1,12,1,16],[4,17,4,21],[5,17,5,21],[6,17,6,21],[9,17,9,21],[11,17,11,21],[0,10,0,11],[0,12,0,16],[2,12,2,16],[3,12,3,16],[4,12,4,16],[3,0,4,0],[33,17,33,21],[34,17,34,21],[2,10,2,11],[3,10,3,11],[4,10,4,11],[2,4,2,5],[3,4,3,5],[25,17,25,21],[26,17,26,21],[15,17,15,21],[16,17,16,21],[17,17,17,21],[18,17,18,21],[21,17,21,21],[32,17,32,21]]}
["TID","1 ½ time","½  time","½ time","2 x 15 min.",null,"3 timer","½ time","20 min.","3 timer","2 x ½ time",null,"5 x 10 min.",null,null,null,null,null,null,null,null,null,"2 timer"]
["LOMME"]
[{"$f":"Navne!D2\n&\"    \"\n&\"    \"\n&\"Uge\"","v":"1. A        Uge"}]
[38,"Bogstavbogen","I-pad","Lærings-","Læse",null,"Min egen bog","Logbog","Twister","Male","Matematik",null,"Sjip",null,null,null,null,"Kasse",null,null,null,null,"Fødselsdags-"]
[null,"side 16-19",null,"center","Ark","Bog",null,null,"små dyr",null,"værksted",null,null,null,null,null,null,null,null,null,null,null,"tale"]
[{"$f":"Navne!A2","v":"Navn 1"}]
[{"$f":"Navne!A3","v":"Navn 2"}]
[{"$f":"Navne!A4","v":"Navn 3"}]
[{"$f":"Navne!A5","v":"Navn 4"}]
[{"$f":"Navne!A6","v":"Navn 5"}]
[{"$f":"Navne!A7","v":"Navn 6"}]
[{"$f":"Navne!A8","v":"Navn 7"}]
[{"$f":"Navne!A9","v":"Navn 8"}]
[{"$f":"Navne!A10","v":"Navn 9"}]
[{"$f":"Navne!A11","v":"Navn10"}]
[{"$f":"Navne!A12","v":"Navn11"}]
[{"$f":"Navne!A13","v":"Navn12"}]
[{"$f":"Navne!A14","v":"Navn13"}]
[{"$f":"Navne!A15","v":"Navn14"}]
[{"$f":"Navne!A16","v":"Navn15"}]
[{"$f":"Navne!A17","v":"Navn16"}]
[{"$f":"Navne!A18","v":"Navn17"}]
[{"$f":"Navne!A19","v":"Navn18"}]
[{"$f":"Navne!A20","v":"Navn19"}]
[{"$f":"Navne!A21","v":"Navn20"}]
[{"$f":"Navne!A22","v":"Navn21"}]
[{"$f":"Navne!A23","v":"Navn22"}]
[{"$f":"Navne!A24","v":"Navn23"}]
[{"$f":"Navne!A25","v":"Navn24"}]
[{"$f":"Navne!A26","v":"Navn25"}]
[{"$f":"Navne!A27","v":"Navn26"}]
[{"$f":"Navne!A28","v":"Navn27"}]
[{"$f":"Navne!A29","v":"Navn28"}]
["Lærer"]
["Pædagog"]

{"sheet":"Ikoner","index":3,"n_rows":3,"n_cols":2,"rows_kept":3,"cut":false,"hidden":false,"merged":[]}
[]
[null,"Find flere ikoner på "]
[null,"UgeskemaRevolutionen.dk/ikoner"]

{"sheet":"Samarbejdsskema","index":4,"n_rows":29,"n_cols":31,"rows_kept":29,"cut":false,"hidden":false,"merged":[[4,30,4,32],[1,30,3,34]]}
[{"$f":"\"Samarbejds-\nskema\"&CHAR(10)&\nNavne!D2","v":"Samarbejds-\nskema\n1. A"},{"$f":"$A2","v":"Navn 1"},{"$f":"$A3","v":"Navn 2"},{"$f":"$A4","v":"Navn 3"},{"$f":"$A5","v":"Navn 4"},{"$f":"$A6","v":"Navn 5"},{"$f":"$A7","v":"Navn 6"},{"$f":"$A8","v":"Navn 7"},{"$f":"$A9","v":"Navn 8"},{"$f":"$A10","v":"Navn 9"},{"$f":"$A11","v":"Navn10"},{"$f":"$A12","v":"Navn11"},{"$f":"$A13","v":"Navn12"},{"$f":"$A14","v":"Navn13"},{"$f":"$A15","v":"Navn14"},{"$f":"$A16","v":"Navn15"},{"$f":"$A17","v":"Navn16"},{"$f":"$A18","v":"Navn17"},{"$f":"$A19","v":"Navn18"},{"$f":"$A20","v":"Navn19"},{"$f":"$A21","v":"Navn20"},{"$f":"$A22","v":"Navn21"},{"$f":"$A23","v":"Navn22"},{"$f":"$A24","v":"Navn23"},{"$f":"$A25","v":"Navn24"},{"$f":"$A26","v":"Navn25"},{"$f":"$A27","v":"Navn26"},{"$f":"$A28","v":"Navn27"},{"$f":"$A29","v":"Navn28"}]
[{"$f":"Navne!A2","v":"Navn 1"},null,null,null,null,null,null,null,null,null,null,null,null,null,null,null,null,null,null,null,null,null,null,null,null,null,null,null,null,null,"1. Få hele forklaringen på side 130 i bogen\n    \"Få ro, trivsel og overskud i lyset af\n    folkeskolereformen\". Se mere om bogen"]
[{"$f":"Navne!A3","v":"Navn 2"}]
[{"$f":"Navne!A4","v":"Navn 3"}]
[{"$f":"Navne!A5","v":"Navn 4"},null,null,null,null,null,null,null,null,null,null,null,null,null,null,null,null,null,null,null,null,null,null,null,null,null,null,null,null,null,"   Se mere om bogen"]
[{"$f":"Navne!A6","v":"Navn 5"}]
[{"$f":"Navne!A7","v":"Navn 6"},null,null,null,null,null,null,null,null,null,null,null,null,null,null,null,null,null,null,null,null,null,null,null,null,null,null,null,null,null,"2. Udvælg med musen det område, du vil printe"]
[{"$f":"Navne!A8","v":"Navn 7"}]
[{"$f":"Navne!A9","v":"Navn 8"},null,null,null,null,null,null,null,null,null,null,null,null,null,null,null,null,null,null,null,null,null,null,null,null,null,null,null,null,null,"3.  Vælg Udskriv eller Ctrl P"]
[{"$f":"Navne!A10","v":"Navn 9"}]
[{"$f":"Navne!A11","v":"Navn10"},null,null,null,null,null,null,null,null,null,null,null,null,null,null,null,null,null,null,null,null,null,null,null,null,null,null,null,null,null,"4. Vælg printer"]
[{"$f":"Navne!A12","v":"Navn11"}]
[{"$f":"Navne!A13","v":"Navn12"},null,null,null,null,null,null,null,null,null,null,null,null,null,null,null,null,null,null,null,null,null,null,null,null,null,null,null,null,null,"5. Vælg \"Udskriv markering\" "]
[{"$f":"Navne!A14","v":"Navn13"}]
[{"$f":"Navne!A15","v":"Navn14"}]
[{"$f":"Navne!A16","v":"Navn15"}]
[{"$f":"Navne!A17","v":"Navn16"}]
[{"$f":"Navne!A18","v":"Navn17"}]
[{"$f":"Navne!A19","v":"Navn18"}]
[{"$f":"Navne!A20","v":"Navn19"}]
[{"$f":"Navne!A21","v":"Navn20"}]
[{"$f":"Navne!A22","v":"Navn21"}]
[{"$f":"Navne!A23","v":"Navn22"}]
[{"$f":"Navne!A24","v":"Navn23"}]
[{"$f":"Navne!A25","v":"Navn24"}]
[{"$f":"Navne!A26","v":"Navn25"}]
[{"$f":"Navne!A27","v":"Navn26"}]
[{"$f":"Navne!A28","v":"Navn27"}]
[{"$f":"Navne!A29","v":"Navn28"},null,null,null,null,null,null,null,null,null,null,null,null,null,null,null,null,null,null,null,null,null,null,null,null,null,null,null,null,null,"6. Vælg  \"Udskriv\""]